bitfinex/quotes_ETHUSD_20230404
["timestamp","ask_amount","ask_price","bid_price","bid_amount"]
[1680651653521,0.00496556,1864.5,1864.2,6.25022809]
[1680651656775,6.92838013,1864.6,1864.2,6.2538938]
[1680651656776,0.002,1864.6,1864.2,6.2538938]
[1680651656976,5.651,1864.7,1864.2,6.2538938]
[1680651657289,0.002,1864.7,1864.2,6.2538938]
[1680651657492,6.3,1864.8,1864.4,1.68949]
[1680651657703,6.3,1864.8,1864.4,1.69315532]
[1680651657704,0.002,1864.8,1864.4,1.69315532]
[1680651657888,0.11000001,1864.9,1864.4,4.69315532]
[1680651658092,0.11000001,1864.9,1864.6,4.1027]
[1680651659892,0.11000001,1864.9,1864.7,3.0]
[1680651660094,0.11000001,1864.9,1864.8,1.68918]
[1680651660295,0.11000001,1864.9,1864.8,2.158098]
[1680651662316,0.11000001,1864.9,1864.8,1.68918]
[1680651665011,0.11000001,1864.9,1864.8,4.46897172]
[1680651665244,0.11000001,1864.9,1864.8,7.46897172]
[1680651665448,0.11000001,1864.9,1864.8,7.47097172]
[1680651665643,0.11000001,1864.9,1864.8,12.75857172]
[1680651665822,0.11000001,1864.9,1864.8,14.99970589]
[1680651667448,0.11000001,1864.9,1864.8,14.99370589]
[1680651667655,0.11000001,1864.9,1864.8,14.99970589]
[1680651669331,0.11000001,1864.9,1864.8,15.37995076]
[1680651670349,0.01000001,1864.9,1864.8,25.28045076]
[1680651676268,0.01000001,1864.9,1864.8,25.54808518]
[1680651677873,0.11000001,1865.2,1864.9,0.5]
[1680651678076,1e-08,1865.2,1865.0,6.8720415]
[1680651678382,1e-08,1865.2,1865.1,13.37475]
[1680651678563,1e-08,1865.2,1865.1,21.4279066]
[1680651678966,1e-08,1865.2,1865.1,22.8079066]
[1680651679146,1e-08,1865.2,1865.1,25.42691419]
[1680651679349,1e-08,1865.2,1865.1,25.19691419]
[1680651679882,1e-08,1865.2,1865.1,20.37144419]
[1680651680081,1e-08,1865.2,1865.1,19.22144419]
[1680651682558,1e-08,1865.2,1865.1,14.92808563]
[1680651682788,1e-08,1865.2,1865.1,19.75355563]
[1680651683382,1e-08,1865.2,1865.1,19.75088488]
[1680651683591,1e-08,1865.2,1865.1,19.21877344]
[1680651684153,1e-08,1865.2,1865.1,19.59510678]
[1680651684354,1e-08,1865.2,1865.1,16.56145018]
[1680651686263,1e-08,1865.2,1865.1,13.94244259]
[1680651695842,1e-08,1865.2,1865.1,16.70846477]
[1680651697008,1e-08,1865.2,1865.1,13.94244259]
[1680651697377,1e-08,1865.2,1865.1,14.07425159]
[1680651697638,1e-08,1865.2,1865.1,16.84027377]
[1680651697939,1e-08,1865.2,1865.1,19.39836602]
[1680651699548,1e-08,1865.3,1865.1,19.66600044]
[1680651699697,1e-08,1865.3,1865.2,2.76602218]
[1680651699897,1e-08,1865.3,1865.2,4.45484218]
[1680651700257,0.11000001,1865.6,1865.2,9.51794322]
[1680651700396,0.11000001,1865.6,1865.3,6.13621]
[1680651700753,0.11000001,1865.6,1865.3,8.90423218]
[1680651701253,0.11000001,1865.6,1865.3,9.23994314]
[1680651708227,0.11000001,1865.6,1865.3,9.24456765]
[1680651708421,0.11000001,1865.6,1865.3,10.47243852]
[1680651714969,0.11000001,1865.6,1865.3,10.70243852]
[1680651719751,0.11000001,1865.6,1865.3,10.97007294]
[1680651721873,0.10780452,1865.4,1865.3,10.97007294]
[1680651723389,0.11000001,1865.6,1865.4,0.5]
[1680651723595,0.11000001,1865.6,1865.5,14.34629374]
[1680651723800,0.11000001,1865.6,1865.5,19.96471153]
[1680651723964,0.11000001,1865.6,1865.5,20.23234595]
[1680651724450,0.07276956,1865.6,1865.5,20.23234595]
[1680651725393,0.03592112,1865.6,1865.5,20.60083033]
[1680651725550,0.03592112,1865.6,1865.5,22.90466048]
[1680651726400,0.11000001,1865.8,1865.5,22.90466048]
[1680651726594,0.11000001,1865.8,1865.6,3.643]
[1680651726768,0.11000001,1865.8,1865.7,6.86634218]
[1680651726959,0.11000001,1865.8,1865.7,9.86834218]
[1680651727169,0.11000001,1865.8,1865.7,11.24623984]
[1680651731494,0.11000001,1865.8,1865.7,11.48127469]
[1680651731701,0.11000001,1865.8,1865.7,11.25127469]
[1680651732365,0.11000001,1865.8,1865.7,11.61587393]
[1680651734810,0.03750969,1866.2,1865.8,0.5]
[1680651734954,0.11000001,1866.4,1866.2,13.74448]
[1680651735157,0.12100001,1866.8,1866.3,10.96512218]
[1680651735459,0.11000001,1866.8,1866.4,4.68375218]
[1680651735662,0.11000001,1866.8,1866.5,6.60256522]
[1680651735864,0.11000001,1866.8,1866.5,9.3705874]
[1680651736066,0.11000001,1866.8,1866.5,8.90221218]
[1680651736283,5.14894611,1867.9,1866.5,8.90221218]
[1680651736284,1.39496945,1867.6,1866.6,0.11]
[1680651736486,0.009,1867.4,1867.3,1.149]
[1680651736694,0.002,1867.8,1867.5,8.91544]
[1680651736893,0.006,1868.1,1867.7,4.09593]
[1680651737102,0.006,1868.1,1868.0,1.68627]
[1680651737504,0.009,1868.3,1868.0,1.68627]
[1680651737667,0.009,1868.3,1868.0,2.79727]
[1680651737668,0.1158,1868.3,1868.0,2.79727]
[1680651738004,0.1158,1868.3,1868.0,2.81449128]
[1680651740990,0.009,1868.4,1868.1,2.76602218]
[1680651741219,0.11000001,1868.6,1868.2,4.68606]
[1680651741220,1.26300001,1868.6,1868.2,4.68606]
[1680651741367,1.26300001,1868.6,1868.2,8.63008218]
[1680651741554,0.1263,1868.5,1868.2,5.63208218]
[1680651742258,1.2743,1868.5,1868.2,2.86606]
[1680651742460,1.2833,1868.5,1868.2,2.86406]
[1680651742680,0.12833,1868.4,1868.2,2.86406]
[1680651744119,1.148,1868.5,1868.2,8.03881218]
[1680651744255,0.11900001,1868.6,1868.4,0.72253]
[1680651744656,0.11900001,1868.6,1868.5,1.157]
[1680651744965,0.11900001,1868.6,1868.5,1.39783]
[1680651745168,0.23699657,1868.6,1868.5,1.39783]
[1680651745367,0.23699657,1868.6,1868.5,1.87949]
[1680651751199,0.11000001,1868.6,1868.5,1.87949]
[1680651752072,0.11000001,1868.6,1868.5,9.46220218]
[1680651752293,0.11000001,1868.6,1868.5,12.46420218]
[1680651752874,0.11000001,1868.6,1868.5,7.64751218]
[1680651753770,0.11000001,1868.6,1868.5,4.88149]
[1680651754106,0.11000001,1868.6,1868.5,4.87949]
[1680651755993,0.11000001,1868.6,1868.5,7.64551218]
[1680651756212,0.11000001,1868.6,1868.5,7.64751218]
[1680651757893,0.11000001,1868.6,1868.5,7.65151218]
[1680651757894,0.10703708,1868.6,1868.5,7.65151218]
[1680651758101,0.10703708,1868.6,1868.5,7.64751218]
[1680651759299,0.10703708,1868.6,1868.5,7.97745607]
[1680651766518,0.10703708,1868.6,1868.5,5.21143389]
[1680651772819,0.11200264,1868.6,1868.5,5.21143389]
[1680651773028,0.11200264,1868.6,1868.5,2.21143389]
[1680651773236,1.26100264,1868.6,1868.5,2.20943389]
[1680651773451,1.3871029,1868.6,1868.5,2.20943389]
[1680651777840,1.35864178,1868.6,1868.5,2.20943389]
[1680651785024,0.07857596,1868.6,1868.5,4.97945607]
[1680651785198,0.07857596,1868.6,1868.5,7.98145607]
[1680651785398,0.07857596,1868.6,1868.5,7.98345607]
[1680651785598,0.009,1869.1,1868.5,12.79414607]
[1680651785902,0.56698836,1869.2,1868.6,7.06265254]
[1680651786115,0.56698836,1869.2,1868.7,4.09355]
[1680651786312,1.146,1869.1,1868.8,2.76602218]
[1680651786630,1.146,1869.1,1868.9,1.68547]
[1680651786784,1.155,1869.1,1868.9,1.68547]
[1680651786982,1.32629884,1869.1,1868.9,2.85547]
[1680651787792,1.146,1869.0,1868.9,1.41078]
[1680651788139,1.155,1869.0,1868.9,1.89234]
[1680651788424,1.28762988,1869.0,1868.9,1.89234]
[1680651789427,1.28762988,1869.0,1868.9,2.15710298]
[1680651792290,1.28762988,1869.0,1868.9,1.67554298]
[1680651793326,1.27862988,1869.0,1868.9,2.15710298]
[1680651794031,0.14162988,1869.0,1868.9,3.12023298]
[1680651794242,0.17129884,1869.1,1868.9,2.15710298]
[1680651794243,0.18029884,1869.1,1868.9,2.15710298]
[1680651797213,1.148,1869.0,1868.9,2.15710298]
[1680651797548,1.157,1869.0,1868.9,0.98710298]
[1680651797717,1.85472988,1869.0,1868.9,0.98710298]
[1680651798061,1.157,1869.0,1868.9,0.98710298]
[1680651798718,1.157,1869.0,1868.9,0.50554298]
[1680651799054,1.157,1869.0,1868.9,0.98710298]
[1680651803067,0.009,1869.0,1868.9,0.50554298]
[1680651803566,0.009,1869.0,1868.9,0.98710298]
[1680651804651,0.14242644,1869.0,1868.9,0.98710298]
[1680651805374,0.14242644,1869.0,1868.9,0.50554298]
[1680651805582,6.93542644,1869.0,1868.9,0.26476298]
[1680651805776,6.93742644,1869.0,1868.9,0.26476298]
[1680651806273,6.93742644,1869.0,1868.7,0.2408]
[1680651806578,1.144,1868.8,1868.7,0.2408]
[1680651806775,1.153,1868.8,1868.6,0.72243]
[1680651806975,1.148,1868.7,1868.6,0.72243]
[1680651808060,1.157,1868.7,1868.6,0.72243]
[1680651808876,6.806,1868.7,1868.6,0.2408]
[1680651809076,6.806,1868.7,1868.4,0.96535]
[1680651809077,6.9237,1868.7,1868.4,0.24083]
[1680651809297,1.148,1868.5,1868.3,0.48171]
[1680651809579,1.157,1868.5,1868.4,0.24083]
[1680651809793,1.148,1868.5,1868.4,0.24083]
[1680651809995,1.14499131,1868.5,1868.4,0.24083]
[1680651810879,6.79399131,1868.5,1868.2,1.44522]
[1680651811202,0.00496556,1868.4,1868.3,0.24084]
[1680651811490,0.68436469,1868.4,1868.3,0.24084]
[1680651812054,0.30843647,1868.3,1868.0,0.002]
[1680651812356,7.947,1868.1,1868.0,0.177]
[1680651812549,7.949,1868.1,1868.0,0.177]
[1680651812838,7.949,1868.1,1868.0,0.24089]
[1680651812839,2.98230656,1868.1,1868.0,0.24089]
[1680651813140,2.98030656,1868.1,1868.0,0.174]
[1680651814096,8.62930656,1868.1,1868.0,0.174]
[1680651814304,10.57225656,1868.1,1868.0,0.174]
[1680651814497,12.80297874,1868.1,1868.0,0.174]
[1680651815628,13.56827874,1868.1,1868.0,0.174]
[1680651815980,0.26769,1867.8,1867.4,0.108]
[1680651816281,1.148,1867.5,1867.4,0.1]
[1680651818273,1.148,1867.5,1867.4,0.721]
[1680651819046,1.148,1867.5,1867.4,0.96197]
[1680651819240,1.2628,1867.5,1867.4,0.721]
[1680651819462,1.2628,1867.5,1867.4,0.89986269]
[1680651819693,1.148,1867.5,1867.4,1.14083269]
[1680651819859,1.148,1867.7,1867.4,1.62278269]
[1680651821654,1.148,1867.7,1867.4,1.57278269]
[1680651821851,1.148,1867.7,1867.4,1.09083269]
[1680651822080,1.15296556,1867.7,1867.4,1.09083269]
[1680651822261,0.11529656,1867.6,1867.4,1.09083269]
[1680651823995,0.11529656,1867.6,1867.4,1.57278269]
[1680651824166,0.00496556,1867.7,1867.4,1.57278269]
[1680651825563,0.00496556,1867.7,1867.4,4.57278269]
[1680651825880,0.009,1867.9,1867.5,0.01722589]
[1680651826087,1.157,1868.1,1867.6,0.72283]
[1680651826298,2.23167,1868.1,1867.6,0.90363784]
[1680651826498,2.23167,1868.1,1867.6,0.72283]
[1680651828694,2.23167,1868.1,1867.7,0.643]
[1680651828860,2.23167,1868.1,1867.8,0.24092]
[1680651829066,0.223167,1868.0,1867.8,0.24092]
[1680651832980,1.08863556,1868.1,1867.8,0.24092]
[1680651834432,1.08863556,1868.1,1867.9,0.17631339]
[1680651835432,1.08863556,1868.1,1867.7,1.36578]
[1680651836618,1.08863556,1868.1,1867.7,0.88392]
[1680651836828,1.149,1867.9,1867.7,0.643]
[1680651838507,5.649,1867.9,1867.7,0.643]
[1680651838863,5.66,1867.9,1867.7,0.643]
[1680651840557,5.66496556,1867.9,1867.7,0.643]
[1680651840960,5.65896556,1867.9,1867.7,0.63952087]
[1680651841255,0.56589656,1867.8,1867.7,0.88045087]
[1680651841406,0.56589656,1867.8,1867.7,0.63952087]
[1680651842362,0.56589656,1867.8,1867.7,0.88045087]
[1680651842705,0.56589656,1867.8,1867.7,0.63952087]
[1680651843330,0.56589656,1867.8,1867.7,0.88045087]
[1680651844962,1.151,1867.9,1867.7,1.36232087]
[1680651845256,0.10886356,1868.0,1867.7,1.3508]
[1680651848757,2.23663556,1868.1,1867.7,1.3508]
[1680651849473,2.23663556,1868.1,1867.8,0.17657727]
[1680651849675,2.23663556,1868.1,1867.8,0.41748727]
[1680651850240,2.23063556,1868.1,1867.8,0.41748727]
[1680651850433,2.23663556,1868.1,1867.8,0.41748727]
[1680651850632,0.22366356,1868.0,1867.8,0.41748727]
[1680651851563,0.22366356,1868.0,1867.8,0.17657727]
[1680651851564,5.87266356,1868.0,1867.8,0.17657727]
[1680651851746,8.64068574,1868.0,1867.9,0.64903444]
[1680651852079,10.01868574,1868.0,1867.9,0.64903444]
[1680651858348,10.02768574,1868.0,1867.9,0.64903444]
[1680651858734,10.01868574,1868.0,1867.9,0.64903444]
[1680651862155,11.15868574,1868.0,1867.9,0.64903444]
[1680651864454,11.15868574,1868.0,1867.9,0.827283]
[1680651872912,10.01068574,1868.0,1867.9,0.827283]
[1680651873598,10.00682303,1868.0,1867.9,0.827283]
[1680651882246,9.51382303,1868.0,1867.9,0.827283]
[1680651892655,10.42848303,1868.0,1867.9,0.827283]
[1680651892854,10.16082303,1868.0,1867.9,0.827283]
[1680651893273,10.42848303,1868.0,1867.9,0.827283]
[1680651893936,10.16082303,1868.0,1867.9,0.827283]
[1680651894351,10.42848303,1868.0,1867.9,0.64903444]
[1680651894767,13.64748303,1868.0,1867.9,0.64903444]
[1680651895098,16.42413452,1868.0,1867.4,0.058]
[1680651895391,16.42413452,1868.0,1867.4,0.05]
[1680651895392,6.296,1867.5,1867.4,0.05]
[1680651895595,9.29402218,1867.5,1867.4,0.05]
[1680651896163,9.94102218,1867.5,1867.4,0.05]
[1680651896360,9.94102218,1867.5,1867.4,0.169]
[1680651896577,11.0905964,1867.5,1867.4,0.169]
[1680651897182,10.9445964,1867.5,1867.4,0.169]
[1680651897357,10.9445964,1867.5,1867.4,0.33288303]
[1680651898464,17.4313264,1867.5,1867.4,0.33288303]
[1680651898797,17.9667964,1867.5,1867.4,0.33288303]
[1680651899460,17.9667964,1867.5,1867.4,0.169]
[1680651900010,18.5023276,1867.5,1867.4,0.169]
[1680651901572,19.6503276,1867.5,1867.4,0.169]
[1680651902171,20.20956517,1867.5,1867.4,0.169]
[1680651906664,20.99870567,1867.5,1867.4,0.169]
[1680651908400,20.99870567,1867.5,1867.4,0.05]
[1680651908794,20.20956517,1867.5,1867.4,0.05]
[1680651912872,19.06156517,1867.5,1867.4,0.05]
[1680651914098,19.19452534,1867.5,1867.4,0.05]
[1680651915280,19.98366584,1867.5,1867.4,0.05]
[1680651918031,8.868,1867.2,1866.8,0.1]
[1680651918183,13.57443218,1867.0,1866.8,0.1]
[1680651918384,7.29482,1866.9,1866.8,0.1]
[1680651918717,10.59848218,1866.9,1866.8,0.1]
[1680651919093,11.1578583,1866.9,1866.8,0.1]
[1680651919317,15.81454413,1866.9,1866.8,0.1]
[1680651919615,15.27890413,1866.9,1866.8,0.1]
[1680651920526,15.01108413,1866.9,1866.8,0.1]
[1680651920821,15.27890413,1866.9,1866.8,0.1]
[1680651922120,15.28790413,1866.9,1866.8,0.1]
[1680651922279,15.27890413,1866.9,1866.8,0.1]
[1680651922482,15.81884817,1866.9,1866.8,0.1]
[1680651923219,19.35448817,1866.9,1866.8,0.1]
[1680651924113,18.81884817,1866.9,1866.8,0.1]
[1680651924421,14.18402817,1866.9,1866.8,0.1]
[1680651924625,11.18402817,1866.9,1866.8,0.1]
[1680651926483,10.95402817,1866.9,1866.8,0.1]
[1680651926684,0.56137612,1866.9,1866.8,0.34105]
[1680651926883,0.002,1867.0,1866.8,0.34505]
[1680651927127,0.002,1867.0,1866.8,0.34105]
[1680651927128,2.76602218,1867.0,1866.8,0.34105]
[1680651927310,2.76602218,1867.0,1866.8,0.34705]
[1680651927509,2.76602218,1867.0,1866.9,0.14129428]
[1680651927713,8.41502218,1867.0,1866.9,0.14129428]
[1680651927929,8.41702218,1867.0,1866.9,0.14729428]
[1680651928133,8.41702218,1867.0,1866.9,0.38833428]
[1680651928339,8.41702218,1867.0,1866.9,0.14729428]
[1680651928956,8.64702218,1867.0,1866.9,0.38833428]
[1680651929242,8.64702218,1867.0,1866.9,0.14729428]
[1680651930318,8.64702218,1867.0,1866.9,0.38833428]
[1680651930535,8.64702218,1867.0,1866.9,0.14729428]
[1680651932435,0.002,1867.0,1866.9,0.27389913]
[1680651932653,5.651,1867.1,1866.9,0.31589913]
[1680651933858,0.002,1867.1,1866.9,1.10470304]
[1680651934155,33.48927662,1867.4,1866.9,1.10470304]
[1680651934156,30.49127662,1867.4,1866.9,2.24470304]
[1680651934344,0.56127662,1867.4,1866.9,2.24470304]
[1680651934543,38.0753,1867.8,1867.0,5.2599703]
[1680651934709,5.649,1867.6,1867.2,0.24099]
[1680651934909,5.649,1867.4,1867.2,0.24099]
[1680651935143,5.651,1867.4,1867.2,0.24699]
[1680651935342,0.002,1867.4,1867.2,0.77299]
[1680651935524,10.74378434,1867.9,1867.2,0.76699]
[1680651935730,3.86696961,1867.8,1867.2,0.76699]
[1680651935993,5.649,1867.7,1867.2,0.77299]
[1680651936208,8.41502218,1867.6,1867.2,0.77299]
[1680651936410,8.41702218,1867.6,1867.2,0.77299]
[1680651938857,0.002,1867.6,1867.2,0.85248389]
[1680651939068,5.651,1867.7,1867.2,0.85248389]
[1680651939430,5.651,1867.7,1867.3,0.26118628]
[1680651939667,5.651,1867.7,1867.4,0.24097]
[1680651939883,5.654,1867.7,1867.4,0.24097]
[1680651940186,5.651,1867.7,1867.4,0.24097]
[1680651940389,5.651,1867.7,1867.5,0.042]
[1680651942788,5.6475452,1867.7,1867.5,0.042]
[1680651943399,0.002,1867.7,1867.5,0.76488]
[1680651943542,5.6475452,1867.9,1867.5,0.28296]
[1680651943746,9.34525837,1867.9,1867.5,0.042]
[1680651945578,9.34525837,1867.9,1867.5,0.28296]
[1680651946591,9.34525837,1867.9,1867.5,0.24096]
[1680651947359,6.57923619,1867.9,1867.5,0.24096]
[1680651949398,5.6475452,1867.9,1867.5,0.24096]
[1680651950691,5.6475452,1867.9,1867.6,1.148]
[1680651950692,0.002,1867.9,1867.6,1.148]
[1680651950876,4.7391,1868.2,1867.7,0.7228]
[1680651951201,4.7391,1868.2,1867.7,1.006258]
[1680651951202,2.77502218,1868.2,1867.7,1.006258]
[1680651951363,2.76602218,1868.2,1867.7,1.006258]
[1680651952625,5.649,1868.1,1867.7,1.006258]
[1680651952768,5.651,1868.1,1867.7,1.006258]
[1680651954402,5.651,1868.1,1867.8,0.25605114]
[1680651954702,5.651,1868.1,1867.8,0.49696114]
[1680651963115,0.002,1868.1,1867.8,0.97881114]
[1680651963315,35.581,1868.3,1867.8,0.97881114]
[1680651963523,9.2078,1868.2,1867.8,0.97881114]
[1680651963814,5.651,1868.2,1867.8,0.97881114]
[1680651965335,5.64802795,1868.2,1867.8,0.98481114]
[1680651965843,5.64802795,1868.2,1867.8,0.50296114]
[1680651966435,8.64205013,1868.1,1867.8,0.26205114]
[1680651966742,0.86420501,1868.0,1867.8,0.50297114]
[1680651966922,0.86420501,1868.0,1867.8,0.26205114]
[1680651967124,0.86420501,1868.0,1867.8,0.25605114]
[1680651967441,0.86420501,1868.0,1867.8,0.49697114]
[1680651969329,5.64802795,1868.3,1867.8,0.49697114]
[1680651969642,5.64602795,1868.1,1867.8,0.49697114]
[1680651969797,5.64802795,1868.1,1867.8,0.25605114]
[1680651970004,5.64802795,1868.1,1867.8,0.49697114]
[1680651972548,5.65702795,1868.1,1867.8,0.49697114]
[1680651972709,7.50617296,1868.1,1867.8,0.49697114]
[1680651972903,7.50617296,1868.1,1867.8,0.25605114]
[1680651973504,10.27219514,1868.1,1867.8,0.25605114]
[1680651974348,10.91819514,1868.1,1867.8,0.25605114]
[1680651975639,10.91819514,1868.1,1867.8,0.49697114]
[1680651975841,1.09181951,1868.0,1867.8,0.49697114]
[1680651977952,1.86014501,1868.1,1867.8,0.97882114]
[1680651978242,0.648,1868.3,1867.8,0.97882114]
[1680651978448,3.41202218,1868.3,1867.8,0.97882114]
[1680651978804,5.649,1868.2,1867.8,0.97882114]
[1680651979002,5.651,1868.2,1867.8,0.97882114]
[1680651984651,5.66,1868.2,1867.8,0.97882114]
[1680651984863,9.3242244,1868.2,1867.8,0.97882114]
[1680651985064,6.296,1868.1,1867.8,0.25605114]
[1680651985368,6.298,1868.1,1867.8,0.25605114]
[1680651987149,8.41702218,1868.1,1867.8,0.25605114]
[1680651987361,8.36702218,1868.1,1867.8,0.25605114]
[1680651987565,0.83670222,1868.0,1867.8,0.25605114]
[1680651988264,9.2017244,1868.0,1867.8,0.25605114]
[1680651988469,9.2037244,1868.0,1867.8,0.49697114]
[1680651988666,9.2037244,1868.0,1867.8,0.25605114]
[1680651992174,10.3447244,1868.0,1867.8,0.25605114]
[1680651992388,6.63347244,1867.9,1867.8,0.25605114]
[1680651992538,6.63547244,1867.9,1867.8,0.25605114]
[1680651992736,6.64447244,1867.9,1867.8,0.25605114]
[1680651992967,6.63547244,1867.9,1867.8,0.25605114]
[1680651994543,9.40149462,1867.9,1867.8,0.25605114]
[1680651994875,9.63149462,1867.9,1867.8,0.25605114]
[1680651998678,10.77449462,1867.9,1867.8,0.25605114]
[1680652000796,10.77449462,1867.9,1867.8,0.49697114]
[1680652000797,0.002,1867.9,1867.8,0.49697114]
[1680652001102,0.002,1868.1,1867.8,0.97882114]
[1680652001310,0.55798836,1868.2,1867.8,0.97882114]
[1680652001466,0.92921179,1868.2,1867.8,0.97882114]
[1680652001808,23.87650707,1868.3,1867.8,0.97882114]
[1680652002002,3.10380707,1868.3,1867.8,1.17307425]
[1680652002210,1.95180707,1868.3,1867.8,1.17307425]
[1680652002406,0.55998836,1868.4,1867.8,1.17307425]
[1680652002613,0.55798836,1868.5,1867.8,1.17307425]
[1680652002785,1.48706933,1868.5,1867.9,0.13924691]
[1680652002983,1.48706933,1868.5,1868.0,1.6862]
[1680652004483,22.74331342,1868.6,1868.0,1.6862]
[1680652004684,0.92907407,1868.5,1868.0,1.6862]
[1680652005307,25.5093356,1868.6,1868.0,1.6862]
[1680652005634,25.5093356,1868.6,1868.0,2.11045069]
[1680652006193,0.92907336,1868.5,1868.0,2.11045069]
[1680652006422,25.5093356,1868.6,1868.0,2.11045069]
[1680652007520,25.5183356,1868.6,1868.0,2.11045069]
[1680652007742,5.649,1868.4,1868.0,1.6862]
[1680652007882,8.41702218,1868.4,1868.0,1.6862]
[1680652008241,0.002,1868.4,1868.0,1.6862]
[1680652008533,23.88931342,1868.6,1868.0,1.6862]
[1680652008681,26.6553356,1868.6,1868.0,1.6862]
[1680652008888,32.18447416,1868.6,1868.0,1.85542]
[1680652009100,28.02482692,1868.6,1868.0,1.85542]
[1680652010415,28.02094394,1868.6,1868.0,1.86142]
[1680652011893,22.49180538,1868.6,1868.0,1.88335831]
[1680652012105,21.34580538,1868.6,1868.0,1.88335831]
[1680652012438,0.002,1868.6,1868.0,4.88335831]
[1680652012585,5.76100001,1868.7,1868.0,4.88335831]
[1680652012922,5.76100001,1868.7,1868.1,0.48833583]
[1680652013221,0.11200001,1868.7,1868.2,4.09474]
[1680652013428,0.11000001,1868.7,1868.4,0.72253]
[1680652013608,0.11000001,1868.7,1868.4,0.89931648]
[1680652014629,0.11000001,1868.7,1868.5,0.22555733]
[1680652014808,0.11000001,1868.7,1868.6,0.24082]
[1680652021069,0.11000001,1868.7,1868.6,0.72246]
[1680652022285,0.11000001,1868.7,1868.6,0.72846]
[1680652022502,0.11000001,1868.7,1868.6,1.413545]
[1680652022655,0.11000001,1868.7,1868.6,1.409545]
[1680652023059,0.11000001,1868.7,1868.6,1.411545]
[1680652023261,0.11000001,1868.7,1868.6,1.413545]
[1680652028467,0.11000001,1868.7,1868.6,1.62889597]
[1680652032206,0.10738572,1868.7,1868.6,1.62289597]
[1680652036471,0.10738572,1868.7,1868.6,1.62085867]
[1680652040701,0.10738572,1868.7,1868.6,0.93577367]
[1680652049623,0.10738572,1868.7,1868.6,0.45413367]
[1680652050730,0.74938572,1868.7,1868.6,0.21535097]
[1680652050926,0.74938572,1868.7,1868.6,0.45617097]
[1680652051131,10.52294647,1868.7,1868.6,0.21535097]
[1680652051318,10.75494647,1868.7,1868.6,0.21535097]
[1680652051522,10.75494647,1868.7,1868.4,0.24084]
[1680652051837,0.642,1868.5,1868.4,0.24084]
[1680652052458,0.642,1868.5,1868.4,0.72253]
[1680652052628,0.642,1868.5,1868.4,0.9109899]
[1680652056837,0.63877325,1868.5,1868.4,0.9109899]
[1680652059552,0.63877325,1868.5,1868.4,0.4292999]
[1680652060756,0.10938572,1868.7,1868.4,0.9109899]
[1680652060968,0.10738572,1868.7,1868.5,0.09109899]
[1680652061177,0.10738572,1868.7,1868.6,0.72246]
[1680652062041,0.10738572,1868.7,1868.6,3.51041345]
[1680652062338,0.10738572,1868.7,1868.6,9.51605469]
[1680652062532,0.10738572,1868.7,1868.6,9.51805469]
[1680652063527,0.10738572,1868.7,1868.6,9.52405469]
[1680652064728,0.10738572,1868.7,1868.6,9.51805469]
[1680652065569,0.10738572,1868.7,1868.6,9.52005469]
[1680652065934,0.10738572,1868.7,1868.6,9.51805469]
[1680652067224,0.10738572,1868.7,1868.6,1.93959251]
[1680652067464,0.10738572,1868.7,1868.6,1.93359251]
[1680652069641,0.10738572,1868.7,1868.6,12.52205469]
[1680652069851,0.11000001,1868.9,1868.6,12.51805469]
[1680652070083,0.11000001,1868.9,1868.7,4.01782765]
[1680652070236,0.11000001,1868.9,1868.8,4.09352]
[1680652070436,0.11000001,1868.9,1868.8,6.85954218]
[1680652070666,0.11000001,1868.9,1868.8,9.86154218]
[1680652072768,0.11000001,1868.9,1868.8,12.35222]
[1680652072956,0.11000001,1868.9,1868.8,14.68110255]
[1680652073428,0.11000001,1868.9,1868.8,17.44712473]
[1680652074557,0.11000001,1868.9,1868.8,17.62848453]
[1680652076386,0.11000001,1868.9,1868.8,17.62848453]
[1680652076588,0.11000001,1868.9,1868.8,18.15615697]
[1680652078960,0.11000001,1868.9,1868.8,15.39013479]
[1680652079160,0.11000001,1868.9,1868.8,13.06125224]
[1680652096753,0.10652646,1868.9,1868.8,13.06125224]
[1680652096954,0.10652646,1868.9,1868.8,15.82727442]
[1680652097647,0.10652646,1868.9,1868.8,13.06125224]
[1680652097855,0.10652646,1868.9,1868.8,15.33825047]
[1680652101249,0.10652646,1868.9,1868.8,18.10427265]
[1680652112293,0.10652646,1868.9,1868.8,15.33825047]
[1680652112428,0.10652646,1868.9,1868.8,13.06125224]
[1680652117502,0.10652646,1868.9,1868.8,10.06125224]
[1680652117751,0.10652646,1868.9,1868.8,1.8689198]
[1680652118041,0.10652646,1868.9,1868.8,1.8669198]
[1680652119246,0.10268995,1868.9,1868.8,1.8669198]
[1680652121147,0.23775895,1868.9,1868.8,1.8669198]
[1680652127180,0.87975895,1868.9,1868.8,1.8669198]
[1680652132040,0.23775895,1868.9,1868.8,1.8669198]
[1680652134367,0.10268995,1868.9,1868.8,1.8669198]
[1680652143679,0.09978138,1868.9,1868.8,1.8669198]
[1680652144186,0.74578138,1868.9,1868.8,1.8669198]
[1680652147162,0.74578138,1868.9,1868.8,0.9037398]
[1680652154794,0.09978138,1868.9,1868.8,0.9037398]
[1680652161509,0.18515952,1868.9,1868.8,0.72238]
[1680652163505,0.18515952,1868.9,1868.8,0.85555481]
[1680652164809,1.46869153,1868.9,1868.8,0.37396481]
[1680652164964,9.88371371,1868.9,1868.8,0.37396481]
[1680652165169,10.11571371,1868.9,1868.8,0.13317481]
[1680652165606,10.11571371,1868.9,1868.7,0.24079]
[1680652165800,2.30357137,1868.8,1868.6,0.24081]
[1680652166105,0.646,1868.7,1868.6,0.24081]
[1680652169528,1.292,1868.7,1868.6,0.24081]
[1680652170429,1.292,1868.7,1868.6,0.72245]
[1680652171991,0.646,1868.7,1868.6,0.72245]
[1680652172204,0.87635714,1868.7,1868.6,0.72245]
[1680652174255,6.52535714,1868.7,1868.4,0.48169]
[1680652174556,5.88135714,1868.7,1868.6,0.24082]
[1680652174759,6.52535714,1868.7,1868.6,0.24082]
[1680652178650,6.52535714,1868.7,1868.6,0.39655168]
[1680652180511,0.87635714,1868.7,1868.6,0.87819168]
[1680652180713,0.644,1868.7,1868.6,0.87819168]
[1680652182265,0.646,1868.8,1868.6,0.87819168]
[1680652184757,0.74031339,1868.9,1868.6,0.87819168]
[1680652185102,0.7370156,1868.9,1868.6,0.87819168]